bitfinex-derivatives/quotes_SOLF0:USTF0_20250426
["timestamp","ask_amount","ask_price","bid_price","bid_amount"]
[1745663647045,6.687,149.5,149.46,6.6882]
[1745663647245,2.083,149.52,149.44,32.74267701]
[1745663647546,6.6866,149.51,149.44,32.74267701]
[1745663647747,2.083,149.52,149.47,6.6878]
[1745663648047,6.6869,149.5,149.47,6.6878]
[1745663648343,6.6869,149.5,149.44,32.74267701]
[1745663648543,6.6879,149.48,149.44,24.6]
[1745663648744,8.14267701,149.51,149.44,24.6]
[1745663649650,6.6875,149.49,149.45,6.6887]
[1745663651547,6.6869,149.5,149.44,32.74267701]
[1745663651749,2.083,149.52,149.44,32.74267701]
[1745663652046,6.687,149.5,149.46,6.6882]
[1745663652250,2.083,149.52,149.44,8.14267701]
[1745663652650,2.083,149.52,149.45,24.6]
[1745663652842,6.6875,149.49,149.45,24.6]
[1745663653246,2.083,149.52,149.45,24.6]
[1745663653939,6.6884,149.47,149.45,24.6]
[1745663654442,8.14267701,149.51,149.45,24.6]
[1745663655243,8.14267701,149.47,149.42,24.58]
[1745663655541,8.14267701,149.45,149.39,24.58]
[1745663655740,5.21731699,149.42,149.39,24.58]
[1745663655947,5.21731699,149.41,149.39,24.58]
[1745663656348,5.21731699,149.42,149.39,24.58]
[1745663656544,5.21731699,149.43,149.39,29.79731699]
[1745663656944,5.21731699,149.43,149.39,36.48871699]
[1745663657245,5.21731699,149.43,149.39,29.79731699]
[1745663657746,11.90751699,149.43,149.39,36.48891699]
[1745663658247,6.6905,149.42,149.39,29.79731699]
[1745663658546,6.6905,149.42,149.39,24.58]
[1745663658745,5.21731699,149.42,149.39,24.58]
[1745663658949,6.6912,149.41,149.39,24.58]
[1745663659242,26.5954,149.46,149.39,24.58]
[1745663659451,6.6912,149.4,149.36,517.89021699]
[1745663659651,11.90851699,149.4,149.36,517.89021699]
[1745663659850,11.90831699,149.41,149.37,5.21731699]
[1745663660348,5.21731699,149.4,149.36,486.61731699]
[1745663660650,5.21731699,149.39,149.36,24.58]
[1745663660845,6.6924,149.38,149.36,24.58]
[1745663661047,5.21731699,149.38,149.36,24.58]
[1745663661242,5.21731699,149.38,149.34,5.21731699]
[1745663662042,2.0154,149.46,149.37,5.21731699]
[1745663662247,5.21731699,149.44,149.4,5.21731699]
[1745663662450,5.21731699,149.44,149.39,5.21731699]
[1745663662750,11.90751699,149.43,149.39,5.21731699]
[1745663664151,11.90751699,149.43,149.38,11.90911699]
[1745663664753,5.21731699,149.42,149.38,5.21731699]
[1745663665353,5.21731699,149.4,149.36,6.6929]
[1745663665755,6.6911,149.41,149.35,24.6]
[1745663666052,6.6911,149.41,149.37,6.6925]
[1745663666756,6.6913,149.4,149.36,6.6928]
[1745663667152,6.6913,149.4,149.35,24.6]
[1745663668256,6.6913,149.4,149.37,6.6925]
[1745663668458,14.84465199,149.42,149.35,24.6]
[1745663668649,6.6905,149.42,149.35,32.75415199]
[1745663669056,6.6909,149.41,149.37,6.6925]
[1745663670150,6.6913,149.4,149.37,6.6925]
[1745663670551,6.6913,149.4,149.36,6.6929]
[1745663670754,6.6919,149.39,149.35,24.6]
[1745663670957,8.15415199,149.42,149.35,24.6]
[1745663670958,8.15415199,149.42,149.35,31.2934]
[1745663672058,6.6924,149.38,149.35,31.2934]
[1745663672665,6.6926,149.37,149.35,24.6]
[1745663673163,6.6926,149.37,149.33,6.6942]
[1745663674063,6.6931,149.36,149.33,6.6942]
[1745663675164,6.6929,149.37,149.34,6.6938]
[1745663676467,6.6929,149.37,149.33,6.6942]
[1745663677565,6.6931,149.36,149.33,6.6942]
[1745663677768,10.04825199,149.4,149.33,6.6942]
[1745663678066,6.6925,149.38,149.34,6.6939]
[1745663678462,10.04825199,149.4,149.34,6.6939]
[1745663678864,6.6929,149.37,149.34,6.6939]
[1745663680269,6.6929,149.37,149.33,6.6942]
[1745663680463,10.04825199,149.4,149.32,28.6225]
[1745663680769,8.15415199,149.38,149.32,24.6]
[1745663680968,6.6938,149.35,149.32,24.6]
[1745663681469,6.6938,149.35,149.32,31.2947]
[1745663681869,6.6931,149.36,149.32,31.2947]
[1745663682069,24.6,149.39,149.32,24.6]
[1745663682471,6.6925,149.38,149.32,24.6]
[1745663682666,24.6,149.39,149.33,6.6942]
[1745663682871,24.6,149.39,149.32,24.6]
[1745663683070,6.6927,149.37,149.32,24.6]
[1745663683270,10.04825199,149.4,149.34,6.6936]
[1745663683673,6.6927,149.37,149.34,6.6936]
[1745663684073,8.15415199,149.38,149.32,26.6193]
[1745663684371,10.04825199,149.4,149.32,26.6193]
[1745663684871,6.6929,149.37,149.34,6.6938]
[1745663687274,6.6931,149.36,149.33,6.6942]
[1745663687671,6.6931,149.36,149.33,11.91432946]
[1745663687873,6.6928,149.37,149.34,6.6939]
[1745663688075,6.6928,149.37,149.34,11.91402946]
[1745663688272,5.22012946,149.38,149.34,5.22012946]
[1745663688471,6.693,149.37,149.34,5.22012946]
[1745663688875,1.8941,149.4,149.36,5.22012946]
[1745663689372,5.22012946,149.41,149.36,5.22012946]
[1745663689877,6.6915,149.4,149.37,6.6926]
[1745663690581,6.6915,149.4,149.37,11.91272946]
[1745663690976,6.6915,149.4,149.37,5.22012946]
[1745663691378,6.692,149.39,149.36,36.49292946]
[1745663691578,5.22012946,149.39,149.36,24.58]
[1745663692182,6.6921,149.38,149.36,24.58]
[1745663692473,2.014,149.41,149.36,29.80012946]
[1745663692682,6.6915,149.4,149.37,11.91242946]
[1745663695580,6.6915,149.4,149.37,5.22012946]
[1745663695782,6.6915,149.4,149.36,31.2729]
[1745663695783,5.22012946,149.4,149.36,24.58]
[1745663696281,6.692,149.39,149.36,24.58]
[1745663696482,5.22012946,149.4,149.36,24.58]
[1745663696682,5.22012946,149.39,149.36,24.58]
[1745663697280,5.22012946,149.39,149.34,36.49392946]
[1745663697481,5.22012946,149.39,149.35,5.22012946]
[1745663697781,6.6924,149.38,149.35,5.22012946]
[1745663697978,5.22012946,149.4,149.36,5.22012946]
[1745663698178,1.9672,149.44,149.36,5.22012946]
[1745663698380,5.22012946,149.41,149.36,5.22012946]
[1745663698579,5.22012946,149.4,149.36,5.22012946]
[1745663698879,6.692,149.39,149.36,11.91312946]
[1745663699484,6.692,149.39,149.36,5.22012946]
[1745663700283,5.22012946,149.4,149.36,11.91302946]
[1745663700485,5.22012946,149.4,149.36,5.22012946]
[1745663700986,6.692,149.39,149.36,5.22012946]
[1745663702283,6.692,149.39,149.36,11.91312946]
[1745663702686,11.91152946,149.4,149.36,11.91312946]
[1745663702885,6.6914,149.4,149.37,5.22012946]
[1745663703787,6.6917,149.39,149.37,5.22012946]
[1745663704592,6.6917,149.39,149.36,11.91312946]
[1745663704986,11.91152946,149.4,149.36,11.91312946]
[1745663705388,1.9672,149.44,149.38,5.22012946]
[1745663705389,5.22012946,149.42,149.38,5.22012946]
[1745663705887,6.6908,149.41,149.34,24.58]
[1745663706187,5.22012946,149.41,149.37,5.22012946]
[1745663706386,5.22012946,149.41,149.36,5.22012946]
[1745663706685,6.692,149.39,149.36,5.22012946]
[1745663707188,6.692,149.39,149.35,11.91332946]
[1745663707386,6.6924,149.38,149.35,5.22012946]
[1745663709585,6.6919,149.39,149.36,5.22012946]
[1745663709987,5.22012946,149.41,149.36,11.91312946]
[1745663710486,6.6915,149.4,149.36,11.91312946]
[1745663710686,5.22012946,149.41,149.37,6.6925]
[1745663710888,5.22012946,149.43,149.38,5.22012946]
[1745663711288,6.6911,149.41,149.38,5.22012946]
[1745663711483,5.22012946,149.43,149.38,5.22012946]
[1745663711785,5.22012946,149.41,149.36,11.91312946]
[1745663711983,5.22012946,149.4,149.35,5.22012946]
[1745663712389,5.22012946,149.41,149.36,5.22012946]
[1745663712890,6.6914,149.4,149.36,11.91282946]
[1745663713091,5.22012946,149.42,149.37,5.22012946]
[1745663713384,5.22012946,149.42,149.38,5.22012946]
[1745663713585,5.22012946,149.43,149.39,5.22012946]
[1745663713890,2.014,149.45,149.41,5.22012946]
[1745663714191,6.6894,149.45,149.41,11.91052946]
[1745663714389,6.6894,149.45,149.41,5.22012946]
[1745663714588,6.6894,149.45,149.42,6.6903]
[1745663714787,6.6887,149.46,149.42,5.22012946]
[1745663716290,6.6887,149.46,149.42,11.91022946]
[1745663716491,6.6887,149.46,149.42,5.22012946]
[1745663716796,6.6887,149.46,149.42,11.91032946]
[1745663716991,6.6887,149.46,149.43,5.22012946]
[1745663718287,4.0625,149.49,149.43,5.22012946]
[1745663718493,6.688,149.48,149.46,5.22012946]
[1745663718793,5.22012946,149.48,149.44,5.22012946]
[1745663718993,5.22012946,149.47,149.43,5.22012946]
[1745663719395,5.22012946,149.47,149.42,31.2701]
[1745663719697,5.22012946,149.46,149.42,29.80012946]
[1745663719995,6.6895,149.44,149.42,29.80012946]
[1745663720193,5.22012946,149.45,149.42,24.58]
[1745663720390,5.22012946,149.43,149.39,29.80012946]
[1745663720592,6.6912,149.4,149.39,24.58]
[1745663720893,6.6912,149.4,149.36,36.49302946]
[1745663721094,6.6912,149.4,149.37,6.6926]
[1745663723298,6.6912,149.4,149.36,31.2728]
[1745663723489,8.15280551,149.45,149.36,24.58]
[1745663723696,8.15280551,149.41,149.36,24.58]
[1745663727099,6.6919,149.39,149.36,31.2727]
[1745663727394,8.15280551,149.41,149.36,31.2727]
[1745663728701,6.6916,149.4,149.36,31.2727]
[1745663729304,6.6919,149.39,149.36,24.58]
[1745663729800,8.15280551,149.41,149.36,24.58]
[1745663730601,6.6924,149.38,149.36,24.58]
[1745663732099,6.6919,149.39,149.36,24.58]
[1745663732406,6.6919,149.39,149.36,31.273]
[1745663732600,6.6919,149.39,149.36,24.58]
[1745663732801,6.6923,149.38,149.36,24.58]
[1745663733100,8.15280551,149.41,149.36,24.58]
[1745663734006,6.692,149.39,149.36,31.273]
[1745663734307,30.5022,149.44,149.36,24.58]
[1745663734499,6.6911,149.41,149.37,6.6923]
[1745663734804,38.65500551,149.44,149.36,32.73280551]
[1745663735406,6.6911,149.41,149.37,6.6922]
[1745663735707,38.65500551,149.44,149.37,6.6922]
[1745663735906,38.65500551,149.44,149.36,24.58]
[1745663736205,38.65500551,149.44,149.36,31.2729]
[1745663737406,6.6915,149.4,149.36,31.2729]
[1745663738409,6.691,149.41,149.37,6.6926]
[1745663738807,36.69140551,149.44,149.39,6.6914]
[1745663738808,26.5077,149.44,149.39,6.6914]
[1745663739111,1.9277,149.44,149.36,32.73280551]
[1745663739608,6.6904,149.42,149.38,6.6917]
[1745663739812,1.9277,149.44,149.37,2.0065]
[1745663740709,6.6911,149.41,149.37,8.6989]
[1745663741613,6.6914,149.4,149.37,2.0065]
[1745663742412,10.08050551,149.44,149.36,24.58]
[1745663742612,8.15280551,149.42,149.36,24.58]
[1745663744013,6.692,149.39,149.36,24.58]
[1745663744614,6.692,149.39,149.36,31.273]
[1745663745616,6.692,149.39,149.37,5.21740228]
[1745663750921,6.692,149.39,149.36,36.49040228]
[1745663752023,6.6922,149.38,149.36,29.79740228]
[1745663752424,6.6922,149.38,149.36,24.58]
[1745663753124,6.6919,149.39,149.36,24.58]
[1745663753624,6.6919,149.39,149.36,31.273]
[1745663755118,5.21740228,149.41,149.37,11.90990228]
[1745663755324,5.21740228,149.41,149.37,5.21740228]
[1745663756223,11.90840228,149.41,149.38,6.6921]
[1745663756625,5.21740228,149.43,149.37,5.21740228]
[1745663756824,5.21740228,149.43,149.39,11.90900228]
[1745663757124,5.21740228,149.45,149.41,5.21740228]
[1745663757324,6.6893,149.45,149.42,11.90750228]
[1745663757725,5.21740228,149.47,149.42,5.21740228]
[1745663757921,6.6893,149.45,149.42,5.21740228]
[1745663758427,6.6893,149.45,149.42,11.90770228]
[1745663760431,6.6896,149.44,149.42,5.21740228]
[1745663760734,5.21740228,149.45,149.41,5.21740228]
[1745663761030,5.21740228,149.43,149.4,24.56]
[1745663761431,6.6906,149.42,149.4,24.56]
[1745663761633,5.21740228,149.43,149.4,24.56]
[1745663761929,6.6888,149.46,149.43,6.6899]
[1745663762231,5.21740228,149.47,149.43,6.6899]
[1745663762634,6.6889,149.46,149.43,6.6899]
[1745663762831,6.6889,149.46,149.43,11.90730228]
[1745663764336,6.6891,149.45,149.43,5.21740228]
[1745663764535,6.6891,149.45,149.42,11.90760228]
[1745663765239,6.6895,149.44,149.41,11.90810228]
[1745663765541,5.21740228,149.44,149.4,24.56]
[1745663765738,6.6903,149.43,149.4,24.56]
[1745663766337,6.6903,149.43,149.4,31.2511]
[1745663766837,11.90690228,149.44,149.41,6.6907]
[1745663767038,5.21740228,149.47,149.42,5.21740228]
[1745663767835,6.6889,149.46,149.43,6.6895]
[1745663768135,31.69060228,149.5,149.45,5.21740228]
[1745663768337,6.6875,149.49,149.46,11.90550228]
[1745663768537,5.21740228,149.53,149.48,5.21740228]
[1745663769035,5.21740228,149.53,149.48,11.90480228]
[1745663769239,5.21740228,149.53,149.48,36.46480228]
[1745663769737,26.5779,149.54,149.48,31.2474]
[1745663769933,26.5779,149.54,149.49,6.6872]
[1745663770131,24.56,149.54,149.49,6.6872]
[1745663770333,8.14053224,149.55,149.48,32.70053224]
[1745663770835,6.6857,149.53,149.5,6.6866]
[1745663771237,6.6859,149.52,149.49,6.6872]
[1745663772241,6.6859,149.52,149.48,39.38813224]
[1745663772430,6.6864,149.51,149.48,39.38813224]
[1745663772635,6.6864,149.51,149.48,31.2476]
[1745663773041,6.6861,149.52,149.48,31.2476]
[1745663773445,6.6861,149.52,149.49,6.6871]
[1745663773940,6.6861,149.52,149.48,24.56]
[1745663773941,6.6861,149.52,149.48,31.2475]
[1745663781344,6.6861,149.52,149.48,24.56]
[1745663781840,6.6856,149.53,149.49,6.687]
[1745663782344,1.933,149.56,149.49,6.6869]
[1745663783144,6.6857,149.53,149.49,6.6869]
[1745663783344,6.6857,149.53,149.5,6.6868]
[1745663783539,1.933,149.56,149.49,8.14053224]
[1745663784047,1.933,149.56,149.51,6.686]
[1745663784339,6.6848,149.55,149.51,6.686]
[1745663784539,1.933,149.56,149.5,6.6867]
[1745663784845,6.6863,149.52,149.48,24.56]
[1745663785146,8.14053224,149.55,149.48,24.56]
[1745663786446,6.6872,149.49,149.48,24.56]
[1745663786946,6.6869,149.5,149.48,24.56]
[1745663787145,8.14053224,149.55,149.48,24.56]
[1745663788042,6.687,149.5,149.48,24.56]
[1745663790549,6.687,149.5,149.48,29.77027093]
[1745663790950,6.6872,149.49,149.48,29.77027093]
[1745663791550,6.6869,149.5,149.48,29.77027093]
[1745663792652,5.21027093,149.54,149.49,5.21027093]
[1745663792842,5.21027093,149.54,149.5,5.21027093]
[1745663793846,6.6863,149.51,149.5,5.21027093]
[1745663794053,6.6863,149.51,149.49,5.21027093]
[1745663794450,6.6863,149.51,149.49,11.89747093]
[1745663794749,6.6863,149.51,149.49,5.21027093]
[1745663797855,6.6861,149.52,149.49,5.21027093]
[1745663798862,11.89587093,149.53,149.5,6.6868]
[1745663799061,6.6856,149.53,149.51,5.21027093]
[1745663801058,6.6859,149.52,149.51,5.21027093]
[1745663803068,6.6863,149.51,149.5,5.21027093]
[1745663803270,5.21027093,149.52,149.47,29.73027093]
[1745663803467,5.21027093,149.51,149.47,29.73027093]
[1745663803670,6.6874,149.49,149.47,29.73027093]
[1745663804867,6.6869,149.5,149.47,29.73027093]
[1745663805070,5.21027093,149.52,149.48,5.21027093]
[1745663805369,6.6866,149.51,149.48,5.21027093]
[1745663805570,5.21027093,149.54,149.5,5.21027093]
[1745663805974,6.6857,149.53,149.5,5.21027093]
[1745663806469,5.21027093,149.56,149.51,5.21027093]
[1745663806675,5.21027093,149.55,149.51,5.21027093]
[1745663807373,6.6857,149.53,149.51,5.21027093]
[1745663809074,6.6859,149.52,149.51,5.21027093]
[1745663809374,6.6859,149.52,149.5,5.21027093]
[1745663810174,6.6856,149.53,149.5,5.21027093]
[1745663810772,6.6856,149.53,149.5,11.89707093]
[1745663811075,6.6852,149.54,149.5,11.89707093]
[1745663811374,6.6852,149.54,149.51,5.21027093]
[1745663811774,6.6855,149.53,149.51,5.21027093]
[1745663813976,6.6851,149.54,149.51,5.21027093]
[1745663814378,6.6851,149.54,149.51,11.89647093]
[1745663815379,6.6847,149.55,149.52,11.89607093]
[1745663815981,6.685,149.54,149.52,5.21027093]
[1745663817281,6.6847,149.55,149.52,5.21027093]
[1745663817480,6.6847,149.55,149.51,36.39647093]
[1745663819183,6.6847,149.55,149.52,6.6857]
[1745663819384,6.6847,149.55,149.51,29.71027093]
[1745663819686,6.6847,149.55,149.51,36.39627093]
[1745663819887,6.6847,149.55,149.51,29.71027093]
[1745663820382,6.685,149.54,149.51,36.39657093]
[1745663821085,6.6847,149.55,149.51,36.39657093]
[1745663821287,6.6847,149.55,149.52,6.6858]
[1745663821789,11.89457093,149.56,149.52,6.6858]
[1745663822688,6.6848,149.55,149.51,36.39647093]
[1745663823389,6.6848,149.55,149.52,6.6859]
[1745663824386,6.6851,149.54,149.51,36.39647093]
[1745663824882,5.21027093,149.55,149.51,24.5]
[1745663825086,6.6851,149.54,149.51,29.71027093]
[1745663825488,6.6855,149.53,149.51,24.5]
[1745663825786,11.89577093,149.53,149.51,24.5]
[1745663825984,6.6868,149.5,149.48,5.21027093]
[1745663826181,6.6868,149.5,149.48,24.5]
[1745663828786,6.6872,149.49,149.48,24.5]
[1745663828988,6.6872,149.49,149.46,5.21027093]
[1745663829290,5.21027093,149.5,149.46,5.21027093]
[1745663829586,5.21027093,149.5,149.45,36.39917093]
[1745663829988,6.6874,149.49,149.45,36.39917093]
[1745663830489,5.21027093,149.5,149.46,6.6886]
[1745663830683,11.89727093,149.5,149.46,6.6886]
[1745663830885,11.89727093,149.5,149.47,6.6881]
[1745663831491,11.89667093,149.51,149.47,6.6881]
[1745663831890,5.21027093,149.51,149.47,6.6881]
[1745663832992,5.21027093,149.52,149.48,6.6877]
[1745663833191,5.21027093,149.53,149.48,5.21027093]
[1745663833491,5.21027093,149.53,149.49,6.687]
[1745663833492,11.89607093,149.53,149.49,6.687]
[1745663833691,5.21027093,149.53,149.49,6.687]
[1745663833894,5.21027093,149.53,149.48,5.21027093]
[1745663834087,6.6863,149.51,149.48,11.89777093]
[1745663834794,6.6863,149.51,149.48,6.6875]
[1745663835293,6.6863,149.51,149.47,11.89817093]
[1745663835490,6.6869,149.5,149.47,11.89817093]
[1745663836394,6.6869,149.5,149.46,11.89867093]
[1745663837395,6.6874,149.49,149.46,11.89867093]
[1745663837796,11.89727093,149.5,149.46,11.89867093]
[1745663837998,6.687,149.5,149.47,6.6881]
[1745663838186,5.21027093,149.51,149.47,5.21027093]
[1745663838493,6.6864,149.51,149.48,6.6876]
[1745663838694,6.6864,149.51,149.47,5.21027093]
[1745663839096,6.6864,149.51,149.47,11.89817093]
[1745663839396,5.21027093,149.51,149.46,5.21027093]
[1745663840099,6.6875,149.49,149.46,5.21027093]
[1745663841200,6.6875,149.49,149.45,36.39907093]
[1745663842096,11.89717093,149.5,149.46,6.6884]
[1745663842302,6.6869,149.5,149.47,5.21027093]
[1745663843403,6.6872,149.49,149.47,5.21027093]
[1745663847404,6.6872,149.49,149.46,5.21027093]
[1745663847601,6.6872,149.49,149.45,31.1888]
[1745663847602,5.21027093,149.47,149.43,5.21027093]
[1745663847804,5.21027093,149.44,149.42,24.5]
[1745663847997,6.6905,149.42,149.39,505.94]
[1745663848197,6.6905,149.42,149.39,24.5]
[1745663849307,6.6908,149.41,149.39,24.5]
[1745663850611,3.9376,149.47,149.39,24.5]
[1745663850805,3.9376,149.47,149.41,5.21027093]
[1745663851107,11.90007093,149.44,149.4,11.90147093]
[1745663851408,5.21027093,149.45,149.4,5.21027093]
[1745663851608,11.89917093,149.46,149.42,5.21027093]
[1745663851809,5.21027093,149.47,149.43,5.21027093]
[1745663852008,29.71027093,149.48,149.43,5.21027093]
[1745663852210,11.89877093,149.47,149.43,5.21027093]
[1745663853408,11.89877093,149.47,149.43,11.90017093]
[1745663853608,6.6885,149.47,149.43,11.90017093]
[1745663853810,6.6885,149.47,149.44,11.89967093]
[1745663854202,11.89807093,149.48,149.44,11.89967093]
[1745663855203,6.6878,149.48,149.44,11.89967093]
[1745663855409,11.89807093,149.48,149.44,11.89967093]
[1745663859507,11.89807093,149.48,149.45,6.689]
[1745663859715,6.6878,149.48,149.44,5.21027093]
[1745663860007,6.6878,149.48,149.44,11.89957093]
[1745663860314,6.6882,149.47,149.44,6.6893]
[1745663860913,6.6882,149.47,149.43,36.39997093]
[1745663861807,6.6882,149.47,149.44,6.6894]
[1745663862613,6.6882,149.47,149.43,36.39997093]
[1745663862814,6.6882,149.47,149.44,5.21027093]
[1745663864015,1.9798,149.49,149.45,6.689]
[1745663864212,5.21027093,149.49,149.45,11.89927093]
[1745663864416,5.21027093,149.5,149.45,5.21027093]
[1745663865119,5.21027093,149.49,149.43,24.5]
[1745663865319,5.21027093,149.48,149.44,5.21027093]
[1745663865520,5.21027093,149.48,149.43,29.71027093]
[1745663865822,11.89827093,149.48,149.44,6.6893]
[1745663866216,11.89827093,149.48,149.43,29.71027093]
[1745663866415,5.21027093,149.47,149.43,31.1898]
[1745663866620,5.21027093,149.47,149.43,24.5]
[1745663868023,11.89847093,149.47,149.43,31.1897]
[1745663869123,6.6888,149.46,149.43,24.5]
[1745663870223,6.6888,149.46,149.43,31.1898]
[1745663870424,11.89857093,149.47,149.43,31.1898]
[1745663870623,11.89857093,149.47,149.43,36.40007093]
[1745663871722,5.21027093,149.47,149.44,6.6894]
[1745663871919,11.89807093,149.48,149.44,6.6894]
[1745663873126,6.6883,149.47,149.44,6.6894]
[1745663874727,11.89817093,149.48,149.44,6.6894]
[1745663875028,11.89817093,149.48,149.44,11.89967093]
[1745663875227,6.6879,149.48,149.45,6.6889]
[1745663876027,11.89767093,149.49,149.45,6.6889]
[1745663878933,6.6874,149.49,149.46,5.21027093]
[1745663879231,6.6874,149.49,149.4,6.003]
[1745663879232,29.69027093,149.55,149.48,5.21027093]
[1745663879431,29.69027093,149.55,149.5,5.21027093]
[1745663879634,6.6855,149.53,149.5,11.89697093]
[1745663881336,29.69027093,149.55,149.5,5.21027093]
[1745663881837,6.6858,149.53,149.5,5.21027093]
[1745663883436,11.89607093,149.53,149.49,6.6871]
[1745663883637,5.21027093,149.53,149.48,11.89787093]
[1745663883941,5.21027093,149.53,149.48,5.21027093]
[1745663884232,6.6868,149.51,149.48,5.21027093]
[1745663884937,6.6868,149.5,149.48,5.21027093]
[1745663885237,5.21027093,149.51,149.47,24.48]
[1745663885639,6.6869,149.5,149.47,24.48]
[1745663886039,6.6869,149.5,149.47,31.1681]
[1745663888137,5.21027093,149.49,149.44,29.69027093]
[1745663889642,6.6884,149.47,149.44,29.69027093]
[1745663890343,6.6884,149.47,149.44,36.37937093]
[1745663890542,6.6879,149.48,149.44,29.69027093]
[1745663890746,5.21027093,149.49,149.44,29.69027093]
[1745663892245,6.6881,149.47,149.44,36.37957093]
[1745663893145,6.6879,149.48,149.44,36.37957093]
[1745663894051,6.6882,149.47,149.44,36.37957093]
[1745663894252,6.6882,149.47,149.44,29.69027093]
[1745663897852,6.6882,149.47,149.44,36.37967093]
[1745663898255,6.6882,149.47,149.44,29.69027093]
[1745663899055,6.6882,149.47,149.44,36.37967093]
[1745663900256,6.6882,149.47,149.44,29.69027093]
[1745663900851,6.69,149.43,149.4,5.21027093]
[1745663901154,6.69,149.43,149.39,24.48]
[1745663901155,5.21027093,149.42,149.39,24.48]
[1745663901556,11.90067093,149.42,149.39,24.48]
[1745663902053,6.6912,149.41,149.39,24.48]
[1745663902259,5.21027093,149.4,149.36,24.48]
[1745663903056,6.6917,149.39,149.36,24.48]
[1745663903755,11.90167093,149.4,149.36,36.38327093]
[1745663904458,11.90167093,149.4,149.37,6.6926]
[1745663904758,5.21027093,149.42,149.38,5.21027093]
[1745663904954,5.21027093,149.43,149.38,5.21027093]
[1745663905154,6.6906,149.42,149.38,11.90217093]
[1745663905362,5.21027093,149.43,149.38,11.90217093]
[1745663906257,6.691,149.41,149.38,11.90217093]
[1745663907757,5.21027093,149.45,149.4,5.21027093]
[1745663907957,5.21027093,149.45,149.41,5.21027093]
[1745663908157,6.6896,149.44,149.41,5.21027093]
[1745663908357,5.21027093,149.45,149.41,5.21027093]
[1745663908658,6.6895,149.44,149.41,5.21027093]
[1745663912357,5.21027093,149.48,149.43,5.21027093]
[1745663912559,24.48,149.49,149.45,5.21027093]
[1745663913260,6.6883,149.47,149.45,5.21027093]
[1745663914568,6.6877,149.48,149.45,11.89917093]
[1745663914759,7.29367093,149.51,149.46,5.21027093]
[1745663914959,7.29367093,149.51,149.47,5.21027093]
[1745663915156,6.6875,149.49,149.47,5.21027093]
[1745663916664,6.6868,149.5,149.47,11.89827093]
[1745663917162,6.6868,149.5,149.48,5.21027093]
[1745663917564,6.6872,149.49,149.48,5.21027093]
[1745663918065,6.6877,149.48,149.47,5.21027093]
[1745663918264,29.69027093,149.52,149.47,5.21027093]
[1745663919068,6.687,149.5,149.48,5.21027093]
[1745663919568,6.6862,149.52,149.49,5.21027093]
[1745663919760,26.5768,149.55,149.51,5.21027093]
[1745663919962,2.0968,149.55,149.51,5.21027093]
[1745663920459,6.6851,149.54,149.51,5.21027093]
[1745663920663,6.6851,149.54,149.52,5.21027093]
[1745663921168,6.6854,149.53,149.52,5.21027093]
[1745663922163,24.48,149.58,149.52,5.21027093]
[1745663922370,6.6843,149.56,149.53,5.21027093]
[1745663922565,29.69027093,149.58,149.53,5.21027093]
[1745663923172,6.6849,149.55,149.53,5.21027093]
[1745663925370,6.685,149.54,149.53,5.21027093]
[1745663925970,6.685,149.54,149.52,24.48]
[1745663926169,6.685,149.54,149.52,29.69027093]
[1745663927271,6.6854,149.53,149.52,29.69027093]
[1745663927570,5.21027093,149.53,149.49,29.69027093]
[1745663927774,5.21027093,149.53,149.49,24.48]
[1745663928065,6.6868,149.5,149.49,24.48]
[1745663928276,5.21027093,149.53,149.49,29.69027093]
[1745663928569,5.21027093,149.55,149.5,5.21027093]
[1745663928770,29.69027093,149.56,149.51,5.21027093]
[1745663928965,29.69027093,149.56,149.52,5.21027093]
[1745663929164,6.6853,149.54,149.51,5.21027093]
[1745663929363,29.69027093,149.56,149.51,5.21027093]
[1745663930571,6.6853,149.54,149.51,5.21027093]
[1745663931366,29.69027093,149.56,149.51,11.89647093]
[1745663931571,24.48,149.56,149.52,5.21027093]
[1745663931774,5.21027093,149.57,149.52,5.21027093]
[1745663931973,5.21027093,149.57,149.52,11.89597093]